Cogmind - Beta 11.1 @@@ ROGUE MODE // 2022.11.04 @ 12:00:55 Player: BRiNK Result: Smashed by cave-in Performance ------------- Evolutions (1) 500 Regions Visited (3) 600 Robots Destroyed (53) 265 Value Destroyed (1320) 1320 Prototype IDs (3) 60 Alien Tech Used (0) 0 Bonus (77) 77 TOTAL SCORE: 2822 Bonus ------- High Alert Combat Kills 77 Cogmind --------- Core Integrity 0/400 Matter 226/300 Energy 24/100 System Corruption 5% Temperature Cool (63) Movement Treading (170) Location -9/Storage Parts ------- > --- POWER (2) -------- (None) > --- PROPULSION (2) --- Armored Treads Armored Treads > --- UTILITY (3) ------ Large Storage Unit Advanced Visual Processing Unit Advanced Targeting Computer > --- WEAPON (2) ------- Medium Laser Pulse Rifle > --- INVENTORY (15) --- Light Ion Engine Light Treads Advanced Targeting Computer Advanced Targeting Computer Field Recycling Unit (0) Field Recycling Unit (0) Improved EM Shotgun Pulse Rifle Light Assault Rifle Shock Bomb Launcher Shock Bomb Launcher Rocket Launcher Great Maul Peak State ------------ > --- POWER ------------ (None) > --- PROPULSION ------- Armored Treads Armored Treads > --- UTILITY ---------- Large Storage Unit Advanced Visual Processing Unit Advanced Targeting Computer > --- WEAPON ----------- Medium Laser Pulse Rifle > --- INVENTORY -------- Light Ion Engine Light Treads Advanced Targeting Computer Advanced Targeting Computer Field Recycling Unit Field Recycling Unit Improved EM Shotgun Pulse Rifle Light Assault Rifle Shock Bomb Launcher Shock Bomb Launcher Rocket Launcher Great Maul [Rating: 20] Favorites ----------- Power Light Ion Engine Engine Light Ion Engine Propulsion Aluminum Leg Treads Armored Treads Leg Aluminum Leg Wheel Wheel Flight Unit Flight Unit Utility Advanced Targeting Computer Device ECM Suite Storage Large Storage Unit Processor Advanced Targeting Computer Protection Light Armor Plating Weapon Light Assault Rifle Energy Gun Medium Laser Ballistic Gun Light Assault Rifle Launcher Shock Bomb Launcher Impact Weapon Great Maul Build | -11 -10 -9 -9 ------- Run | Scr Mat Mat Sto Slots Evolved 2 | . . 2 . Power 1 | . . 1 . Propulsion . | . . . . Utility 1 | . . 1 . Weapon . | . . . . Parts Attached 62 | 4 9 45 4 Power 8 | 1 . 7 . Engine 8 | 1 . 7 . Core . | . . . . Reactor . | . . . . Propulsion 18 | 2 2 12 2 Treads 7 | . . 5 2 Leg 7 | . 2 5 . Wheel 2 | 2 . . . Hover . | . . . . Flight 2 | . . 2 . Utility 10 | . 5 5 . Device 2 | . 1 1 . Storage 2 | . 1 1 . Processor 2 | . . 2 . Hackware . | . . . . Protection 4 | . 3 1 . Artifact . | . . . . Weapon 26 | 1 2 21 2 Energy Gun 5 | . 1 3 1 Energy Cannon . | . . . . Ballistic Gun 11 | 1 1 9 . Ballistic Cannon . | . . . . Launcher 9 | . . 8 1 Special Weapon . | . . . . Impact Weapon 1 | . . 1 . Slashing Weapon . | . . . . Piercing Weapon . | . . . . Special Melee Weapon . | . . . . Unidentified Prototypes 1 | . . 1 . Corrupted Parts 1 | . . 1 . System Corruption 4 | . . 4 . Parts Lost 12 | . . 12 . Power 7 | . . 7 . Propulsion 2 | . . 2 . Utility 2 | . . 2 . Weapon 1 | . . 1 . Highest Loss Streak 4 | . . 4 . To Critical Strikes . | . . . . Average Slot Usage (%) 85 | . 94 85 77 Engine 11 | . 14 12 . Treads 7 | . . 7 22 Leg 12 | . 14 13 . Wheel 1 | . 13 . . Device 1 | . . 1 . Storage 9 | . . 10 11 Processor 11 | . . 11 22 Protection 6 | . 23 5 . Energy Gun 2 | . 5 1 11 Ballistic Gun 14 | . 20 14 9 Launcher 2 | . . 2 . Impact Weapon 2 | . . 3 . Naked Turns . | . . . . Heaviest Build 42 | 4 12 42 26 Greatest Support 40 | 20 20 40 40 Greatest Overweight (x) 7 | . . 7 . Average Overweight (x) . | . . . . Largest Inventory Capacity 25 | 5 25 15 15 Average Capacity 13 | 5 5 14 15 Most Carried 15 | 5 5 15 14 Average Carried 10 | 2 4 11 13 Final Capacity 15 | 5 5 15 15 Final Carried 14 | 5 4 14 13 Class Distribution -------------------- 91% | Mutant 8% | Scavenger-Mutant Dominant Class ---------------- Mutant | -10/Materials Mutant | -9/Materials Mutant | -9/Storage Resources | -11 -10 -9 -9 ----------- Run | Scr Mat Mat Sto Matter Collected 1162 | 243 56 739 124 Remotely . | . . . . Salvage Created 1949 | 34 157 1492 266 Parts 122 | 2 11 95 14 Haulers Intercepted . | . . . . Recyclers Shooed 8 | . . 2 6 Parts Field Recycled . | . . . . Retrieved Matter . | . . . . Parts Self-Destructed . | . . . . Prevented . | . . . . Kills | -11 -10 -9 -9 ------- Run | Scr Mat Mat Sto Combat Hostiles Destroyed 32 | 1 4 24 3 Melee 1 | . . 1 . Guns 21 | 1 4 14 2 AOE 9 | . . 8 1 Classes Destroyed 7 | 1 . 6 . Worker 8 | . . 6 2 Builder 4 | . . 4 . Recycler 5 | . . 3 2 Watcher 4 | . . 4 . Swarmer 3 | . . 3 . Grunt 22 | 1 4 16 1 Sentry 7 | . . 5 2 Best Kill Streak 9 | 1 2 9 4 Combat Bots Only 5 | 1 2 5 1 Max Kills in Single Turn 3 | 1 1 3 1 Gunslinging . | . . . . Exploded 2 | . . 2 1 Melee 1 | . . 1 . Uniques/NPCs Destroyed . | . . . . Combat | -11 -10 -9 -9 -------- Run | Scr Mat Mat Sto Damage Taken 2566 | 32 326 1937 271 Core 512 | . 84 328 100 Absorbed by Shields 116 | . . 116 . Regen/Repaired (Parts) 88 | . . . 88 Core Remaining (%) 83 | 100 66 . . Volleys Fired 171 | 3 28 113 27 Largest 2 | 1 2 2 2 Hottest 113 | 20 60 72 113 Shots Fired 291 | 3 52 184 52 Gun 267 | 3 52 163 49 Cannon . | . . . . Launcher 24 | . . 21 3 Special . | . . . . Kinetic 214 | 3 47 146 18 Thermal 32 | . . 1 31 Explosive 8 | . . 5 3 Electromagnetic 37 | . 5 32 . Robot Hit Streak 28 | 1 12 13 28 Robot Miss Streak 6 | 1 6 6 2 Penetration Max . | . . . . Secondary Targets 2 | . 1 1 . Max Gunslinging Chain 1 | . 1 1 . Shots Hit Robots 217 | 2 35 137 43 Core Hits 101 | 2 10 73 16 Critical Kills 1 | . . 1 . Critical Parts Destroyed 3 | . . 3 . Critical Strikes 7 | . . 4 3 Burn 3 | . . . 3 Destroy 2 | . . 2 . Smash 2 | . . 2 . Melee Attacks 5 | . . 5 . Impact 5 | . . 5 . Slashing . | . . . . Piercing . | . . . . Sneak Attacks 2 | . . 2 . Combat Hostiles . | . . . . Follow-up Attacks . | . . . . Damage Inflicted 3428 | 19 294 2535 580 Guns 1910 | 19 294 1143 454 Cannons . | . . . . Explosions 1211 | . . 1085 126 Melee 305 | . . 305 . Ramming 2 | . . 2 . Kinetic 1303 | 19 255 913 116 Thermal 359 | . . 21 338 Explosive 553 | . . 427 126 Electromagnetic 906 | . 39 867 . Impact 305 | . . 305 . Slashing . | . . . . Piercing . | . . . . Highest Corruption 5 | . . 5 5 Average Corruption 3 | . . 3 5 Corruption Purged . | . . . . Corruption Blocked . | . . . . Effects 30 | . . 24 6 Message Errors 8 | . . 6 2 Matter Fused 5 | . . 5 . Heat Flow Errors 2 | . . 2 . Energy Discharges 1 | . . . 1 Parts Rejected 1 | . . . 1 Data Loss (minor) 5 | . . 5 . Data Loss (major) 5 | . . 3 2 Alerts 1 | . . 1 . Weapon Failures 2 | . . 2 . Overload Shots . | . . . . Overflow Damage 160 | . . 160 . Projectiles . | . . . . Explosions 14 | . . 14 . Melee 146 | . . 146 . Knockbacks . | . . . . Impact . | . . . . Kinetic . | . . . . Secondary . | . . . . Self-Inflicted Damage 70 | . . 47 23 Shots 5 | . . 4 1 Rammed . | . . . . Targets Rammed 1 | . . 1 . Kicked 1 | . . 1 . Crushed . | . . . . Highest Temperature 268 | 6 268 200 63 Average Temperature 44 | 6 96 27 18 Received Heat Transfer 1020 | 18 198 741 63 Siege Activations . | . . . . Robots Corrupted 1 | . . 1 . Combat Hostiles 1 | . . 1 . Parts Fried 4 | . . 4 . Impact Corruptions 5 | . . 5 . Robots Melted . | . . . . Combat Hostiles . | . . . . Parts Melted 2 | . . . 2 Heat Transferred 1271 | . . 87 1184 Parts Sabotaged . | . . . . Parts Stolen . | . . . . Parts Stripped . | . . . . Power Chain Reactions 4 | . . 4 . Missiles Intercepted . | . . . . Alert | -11 -10 -9 -9 ------- Run | Scr Mat Mat Sto Peak Influence 579 | 20 143 579 430 Initial 221 | . 13 59 221 Average 298 | 1 85 353 254 Maximum Alert Level 2 | . . 2 2 Low Security (%) 33 | 100 100 24 . Level 1 28 | . . 25 91 Level 2 37 | . . 50 8 Level 3 . | . . . . Level 4 . | . . . . Level 5 . | . . . . High Security . | . . . . Max Security . | . . . . Squads Dispatched 6 | . 2 3 1 Investigation 3 | . . 2 1 Extermination . | . . . . Reinforcement 3 | . 2 1 . Assault . | . . . . Garrison . | . . . . Intercept . | . . . . Searches Triggered . | . . . . Construction Impeded . | . . . . Haulers Reinforced . | . . . . Active Scanning Responses . | . . . . Cargo Convoy Interrupts . | . . . . Stealth | -11 -10 -9 -9 --------- Run | Scr Mat Mat Sto Distress Signals 5 | . 2 3 . Communications Jammed . | . . . . Distress Signals . | . . . . Times Spotted 46 | 1 6 35 4 Peak Tracking Total 5 | 1 4 5 3 Tactical Retreats 5 | . 1 4 . Traps | -11 -10 -9 -9 ------- Run | Scr Mat Mat Sto Traps Triggered 2 | . . 2 . Indirectly 1 | . . 1 . Trap Hack Attempts . | . . . . Triggered . | . . . . Disarmed . | . . . . Reprogrammed . | . . . . Reused . | . . . . Traps Extracted . | . . . . Installed . | . . . . Triggered . | . . . . Machines | -11 -10 -9 -9 ---------- Run | Scr Mat Mat Sto Machines Disabled 4 | . . 4 . Max in Single Turn 2 | . . 2 . Machines Sabotaged . | . . . . Garrisons Compromised . | . . . . Overloaded Fab Kills . | . . . . Hacking | -11 -10 -9 -9 --------- Run | Scr Mat Mat Sto Machines Accessed 7 | . 1 5 1 Terminals 4 | . 1 3 . Fabricators . | . . . . Repair Stations 1 | . . . 1 Recycling Units 1 | . . 1 . Scanalyzers 1 | . . 1 . Garrison Access . | . . . . Total Hacks 34 | . 5 26 3 Successful 28 | . 2 23 3 Failed 5 | . 3 2 . Catastrophic 1 | . 1 . . Database Lockouts 1 | . . 1 . Manual . | . . . . Terminals 17 | . 5 12 . Fabricators . | . . . . Repair Stations 3 | . . . 3 Recycling Units 8 | . . 8 . Scanalyzers 6 | . . 6 . Garrison Access . | . . . . Terminal Hacks 12 | . 2 10 . Record 8 | . 1 7 . Prototype ID Bank 1 | . . 1 . Surveillance Status 1 | . . 1 . Recall Reinforcements 1 | . 1 . . Zone Layout 1 | . . 1 . Fabricator Hacks . | . . . . Repair Station Hacks 3 | . . . 3 Scan Component 2 | . . . 2 Repair 1 | . . . 1 Recycling Unit Hacks 8 | . . 8 . Recycle Component 2 | . . 2 . Process 1 | . . 1 . Report Inventory 4 | . . 4 . Retrieve Components 1 | . . 1 . Scanalyzer 5 | . . 5 . Insert Component 3 | . . 3 . Analyze 2 | . . 2 . Garrison Access Hacks . | . . . . Unauthorized Hacks . | . . . . Terminals . | . . . . Fabricators . | . . . . Repair Stations . | . . . . Recycling Units . | . . . . Scanalyzers . | . . . . Garrison Access . | . . . . Data Cores Recovered . | . . . . Used . | . . . . Hacking Detections 7 | . 1 5 1 Full Trace Events 3 | . . 2 1 Feedback Events . | . . . . Feedback Blocked . | . . . . Robot Schematics Acquired . | . . . . Robots Built . | . . . . Authchips . | . . . . Time . | . . . . Total Robot Build Rating . | . . . . Part Schematics Acquired 2 | . . 2 . Parts Built . | . . . . Authchips . | . . . . Time . | . . . . Total Part Build Rating . | . . . . Parts Repaired 1 | . . . 1 Time 38 | . . . 38 Parts Recycled 2 | . . 2 . Recycled Matter 213 | . . 213 . Retrieved Matter . | . . . . Retrieved Components . | . . . . Parts Scanalyzed 2 | . . 2 . Part Schematics Acquired 2 | . . 2 . Parts Damaged . | . . . . Bothacking | -11 -10 -9 -9 ------------ Run | Scr Mat Mat Sto Used RIF Installer . | . . . . Robots Hacked . | . . . . Non-combat . | . . . . Combat . | . . . . Robot Hacks Applied . | . . . . Relay Couplers Released . | . . . . Fabnet Peak Effective % . | . . . . Robots Rewired . | . . . . Allies Hacked . | . . . . Hacks Repelled . | . . . . Allies | -11 -10 -9 -9 -------- Run | Scr Mat Mat Sto Total Allies . | . . . . Largest Group . | . . . . Highest-Rated Group . | . . . . Highest-Rated Ally . | . . . . Total Orders . | . . . . Ally Attacks . | . . . . Total Damage . | . . . . Kills . | . . . . Allies Corrupted . | . . . . Allies Melted . | . . . . Intel | -11 -10 -9 -9 ------- Run | Scr Mat Mat Sto Robot Analysis Total . | . . . . Derelict Logs Recovered . | . . . . Drone Launches . | . . . . Drone Recoveries . | . . . . Exploration | -11 -10 -9 -9 ------------- Run | Scr Mat Mat Sto Turns Passed 2324 | 78 285 1714 247 Spaces Moved 1109 | 83 201 727 98 Core 22 | 22 . . . Treads 381 | . . 283 98 Legs 530 | . 90 440 . Wheels 172 | 61 111 . . Hover . | . . . . Flight 4 | . . 4 . Fastest Speed 50 | 50 80 120 165 Average Speed 156 | 72 97 181 168 Slowest Speed 600 | 80 120 600 170 Overloaded Moves . | . . . . Propulsion Burnouts . | . . . . Robots Hopped . | . . . . Cave-ins Triggered 1 | . . . 1 Exploration Rate (%) 28 | 5 43 47 19 Regions Visited 3 Branch Regions 1 Pre-discovered Areas . | . . . . Known Exits Taken . | . . . . Unknown Exits Taken 3 | 1 1 1 . Scrap Searched . | . . . . Spaces Dug . | . . . . Terrain Destroyed 76 | . . 42 34 Melee . | . . . . Projectile . | . . . . AOE 76 | . . 42 34 Terrain Rammed . | . . . . Walls Destroyed . | . . . . Machines Disabled . | . . . . Actions | -11 -10 -9 -9 --------- Run | Scr Mat Mat Sto Total 1419 | 98 245 944 132 Wait 3 | . . 3 . Move 1106 | 82 200 726 98 Hop . | . . . . Pick Up 50 | 9 4 35 2 Fast Attach 3 | . 2 1 . Attach 22 | 4 2 14 2 Detach 2 | . . 2 . Swap 37 | . 5 30 2 Drop 19 | . 4 14 1 Fire 171 | 3 28 113 27 Melee 5 | . . 5 . Ram . | . . . . Kick 1 | . . 1 . Crush . | . . . . Escape Stasis . | . . . . Rewire . | . . . . Trap . | . . . . Miscellaneous . | . . . . Route ------- -11/Scrapyard -10/Materials (discovered 2 exits: *Mat / [*Min]) -9/Materials (discovered 2 exits: [*Mat] / *Sto) -9/Storage History --------- Turn | Location | Event 2 | -11/Scrapyard | Met Revision 17 62 | -11/Scrapyard | Discovered new exit (range 8) 79 | -11/Scrapyard | Entered Materials 170 | -10/Materials | Discovered new exit (range 15) 301 | -10/Materials | Build established: Mutant 314 | -10/Materials | Discovered new exit (range 15) 364 | -10/Materials | Entered another Materials area 364 | -9/Materials | Evolved 2 slots: Power x1, Utility x1 706 | -9/Materials | Central database locked down 1310 | -9/Materials | Lost 4 parts (2p1u1w) 1411 | -9/Materials | Core integrity fell below 50% 1481 | -9/Materials | Lost 4 parts (2p2n) 1652 | -9/Materials | Discovered new exit (range 16) 1818 | -9/Materials | Discovered new exit (range 16) 2057 | -9/Materials | Core integrity fell below 20% 2078 | -9/Materials | Entered Storage 2166 | -9/Storage | Repaired Arm. Treads 2326 | -9/Storage | Crushed by falling debris 2326 | -9/Storage | Smashed by cave-in Last Messages --------------- 02309_ The unstable cave ceiling collapses. 02309_ R-06 Scavenger collects Sml. Storage Unit. 02310_ Acquired 25 matter. 02310_ K-01 Serf collects debris. 02313_ Y-45 Defender suffers critical hit (Burn). 02314_ K-01 Serf collects debris. 02318_ Y-45 Defender heat spikes uncontrollably. 02318_ K-01 Serf collects debris. 02319_ Y-45 Defender heat short circuits Imp. Ion Engine. 02320_ Y-45 Defender heat spikes uncontrollably. 02321_ Y-45 Defender heat damages Heat Sink. 02322_ Y-45 Defender heat damages Heat Sink, Lgt. Treads, Lgt. Armor Plating. 02322_ K-01 Serf collects debris. 02323_ Y-45 Defender heat spikes uncontrollably. 02324_ Y-45 Defender destroyed. 02325_ U-05 Engineer builds a Wall. 02326_ The unstable cave ceiling collapses. 02326_ Crushed by falling debris. [Achievement: Unlikely Earthworm] Map ----- +----------------------------------------------------+ | ????????????????????????????????????????????????? | | ????????????????????????????????????????????????? | | ????????????????????????????????????????????????? | | ????????????????????????????????????????????????? | | ????????????????????????????????????????????????? | | ????????????????????????????????????????????????? | | ????????????????????????????????????????????????? | | ????????????????????????????????????????????????? | | ????????????????????????????????????????????????? | | ????????????????????????????##??????????????????? | | ???????????????????????????? ??????????????????? | | ???????????????????????????? ??????????????????? | | ???????????????????????????? ??????????????????? | | ???????????????????????????# ??????????????????? | | ???????????????????????????# #??????????????????? | | ???????????????????????????# #??????????????????? | | ???????????????????????????# #??????????????????? | | ??????????#+##?????????????# #??????????????????? | | ??????????# ???????????# #??????????????????? | | ??????????#! [%?????????? +??????????????????? | | ????????????? !#?##?????# #??????????#+##????? | | ???????????????# =# ###?# #????????? #????? | | ???????????????# # # ###+####????? ####?? | | ?????# ### ##= #???? ??? | | ????????# % k =%!*u[ #???# #????? | | ???????????????# # @# #### #????? | | ???????????????# ### / #????? | | ???????????????# ???# # % #????? | | ???????????????#####"????# #!## #????? | | ?????????????????????????########+#?? #????? | | ?????????????????????????# #??? #????? | | ???????##+##+#####???????# """"" #????? #????? | | ???????# #???????# """"" #?????? #????? | | ???????# #????#### """"" #??????? #????? | | ???????# """" #????#""" !#?????????????? | | ???????# """" #????#"R """""=#?????????????? | | ???????# """" #????#""" """"" #?????????????? | | ???????# """" #????#### """"" #?????????????? | | ????????? #???????# ! !#?????????????? | | ??????????? #???????#####+####?????????????? | | ???????######+##+########### ### #????? | | ???????# #????? | | ???????# #????? | | ???????# #????? | | ???????##################### ###########????? | | ???????????????????????????#######??????????????? | | ????????????????????????????????????????????????? | | ????????????????????????????????????????????????? | | ????????????????????????????????????????????????? | | ????????????????????????????????????????????????? | +----------------------------------------------------+ Best States ------------- Heat Dissipation 28 Energy Generation 17 Energy Capacity 415 Matter Stores 300 Matter Capacity 300 Sight Range 20 Terrain Scan Density 10 ECM Strength 1 Armor Coverage 300 Evasion (%) 55 Targeting Accuracy 8 Recoil Reduction 2 Item Schematics ----------------- Shock Bomb Launcher | -9/Materials | Scanalyzed Adv. Targeting Computer | -9/Materials | Scanalyzed Robot Schematics ------------------ None Fabricated ------------ Nothing Alien Tech Used ----------------- None Achievements -------------- GoHome() Hey, That's Mine! Power Corrupts Safety First Storm Trooper Unlikely Earthworm Challenges ------------ None Game ------ Seed BehemothTerrabombSpear Manual? 0 Play Time 01:00:54 Cumulative 3.0 hours Start 2022.11.03 @ 19:52:04 End 2022.11.04 @ 12:00:55 Sessions 3 Manual Loads 0 Difficulty Rogue Special Mode None Game No. 2 Rogue 2 Adventurer 0 Explorer 0 Win Type - Total 0 Types 0/0/0/0/0/0/0/0/0 Lore% 1 Gallery% 3 Achievement% 5 Wizard Run 0 Options --------- ASCII 0 Keyboard 0 Movement Mouse Keybinds 0 Fullscreen 1 Font 24/Crisp Map View 76x50 Tactical HUD 1 Map Filters NONE Filters NONE Steam 1 RUN: aa6a4eb6-643f-4c00-8306-7a464694fad1